Cogmind - Beta 15 @@@ ROGUE MODE // 2025.05.07 @ 21:32:31 Player: Skysub Result: Destroyed by YS-14C(j) with Overtuned Pulse Rifle Performance ------------- Evolutions (0) 0 Regions Visited (3) 600 Robots Destroyed (9) 45 Value Destroyed (60) 60 Prototype IDs (0) 0 Alien Tech Used (0) 0 Bonus (800) 800 TOTAL SCORE: 1505 Bonus ------- Registered with UFD 300 Met Optimus in HQ 500 Cogmind --------- Core Integrity 0/250 Matter 290/300 Energy 159/275 System Corruption 0% Temperature Cool (74) Movement Rolling (130) Ox2 Location -7/Scraptown Parts ------- > --- POWER (1) -------- Deuterium Engine > --- PROPULSION (2) --- Armored Huge Wheel > --- UTILITY (2) ------ High-capacity Storage Unit Layered Medium Armor Plating > --- WEAPON (2) ------- Overtuned Barrage Gun > --- INVENTORY (20) --- Flexi-carbon Leg Armored Wheel Armored Huge Wheel Makeshift Flight Unit Scrap Suit Coolant Injector Advanced Sensor Array Advanced Signal Interpreter Advanced Terrain Scanner Advanced Targeting Computer Improved Target Analyzer System Shield Heavy Battle Rifle Plasma Cutter CPS Tube (2) Makeshift Sword Peak State ------------ > --- POWER ------------ Improved Deuterium Engine > --- PROPULSION ------- Armored Huge Wheel > --- UTILITY ---------- High-capacity Storage Unit Terrain Scan Processor > --- WEAPON ----------- Overtuned Pulse Rifle Heavy Battle Rifle > --- INVENTORY -------- Deuterium Engine Overtuned Titanium Leg Flexi-carbon Leg Compact Wheel Compact Wheel Makeshift Flight Unit Coolant Injector Makeshift Microdissipator Network Structural Scanner Advanced Sensor Array Advanced Signal Interpreter Advanced Terrain Scanner Advanced Targeting Computer Improved Target Analyzer Layered Medium Armor Plating System Shield Advanced Assault Cannon Plasma Cutter CPS Tube Makeshift Sword [Rating: 29] Favorites ----------- Power Ion Engine Engine Ion Engine Propulsion Compact Wheel Wheel Compact Wheel Utility Terrain Scan Processor Device Structural Scanner Storage Small Storage Unit Processor Terrain Scan Processor Protection Layered Medium Armor Plating Weapon Heavy Battle Rifle Energy Gun Overtuned Pulse Rifle Ballistic Gun Heavy Battle Rifle Ballistic Cannon Assault Cannon Build | -11 -10 -10 -7 ------- Run | Yrd Mat Sub Scr Slots Evolved . | . . . . Power . | . . . . Propulsion . | . . . . Utility . | . . . . Weapon . | . . . . Parts Attached 24 | 8 1 3 12 Power 4 | 1 . 1 2 Engine 4 | 1 . 1 2 Core . | . . . . Reactor . | . . . . Propulsion 5 | 3 . . 2 Treads . | . . . . Leg . | . . . . Wheel 5 | 3 . . 2 Hover . | . . . . Flight . | . . . . Utility 7 | 2 1 1 3 Device 3 | 1 1 . 1 Storage 2 | 1 . . 1 Processor 1 | . . 1 . Hackware . | . . . . Protection 1 | . . . 1 Artifact . | . . . . Weapon 8 | 2 . 1 5 Energy Gun 1 | . . . 1 Energy Cannon . | . . . . Ballistic Gun 5 | 2 . . 3 Ballistic Cannon 2 | . . 1 1 Launcher . | . . . . Special Weapon . | . . . . Impact Weapon . | . . . . Slashing Weapon . | . . . . Piercing Weapon . | . . . . Special Melee Weapon . | . . . . Unidentified Prototypes . | . . . . Parts Lost 8 | . . 5 3 Power 2 | . . 1 1 Propulsion 1 | . . 1 . Utility 1 | . . 1 . Weapon 4 | . . 2 2 Highest Loss Streak 3 | . . 3 3 To Critical Strikes . | . . . . Average Backups 9 | 3 6 4 10 Power . | . 1 . . Propulsion 2 | 2 4 1 1 Utility 4 | . 1 1 6 Weapon 1 | . . . 1 Tool/Special . | . . . . Unused Backups 23 | . . 3 20 Power . | . . . . Propulsion 9 | . . 3 6 Utility 10 | . . . 10 Weapon 2 | . . . 2 Tool/Special 2 | . . . 2 Average Slot Usage (%) 89 | . 100 96 86 Engine 13 | . 14 13 13 Wheel 23 | . 28 27 22 Device 6 | . 14 12 4 Storage 10 | . 14 2 9 Processor 11 | . . 11 14 Energy Gun 3 | . . . 5 Ballistic Gun 14 | . 28 23 10 Ballistic Cannon 4 | . . 4 5 Peak Build Rating 29 | 9 9 10 29 Average Rating 16 | 6 8 9 18 On Entrance 6 | . 9 8 8 Naked Turns . | . . . . Heaviest Build 59 | 14 14 14 59 Greatest Support 32 | 26 20 26 32 Greatest Overweight (x) 2 | . . . 2 Average Overweight (x) . | . . . . Largest Inventory Capacity 20 | 8 8 8 20 Average Capacity 11 | 7 8 5 12 Most Carried 20 | 5 7 7 20 Average Carried 9 | 3 6 4 11 Final Capacity 20 | 8 8 5 20 Final Carried 18 | 5 7 1 18 Class Distribution -------------------- 72% | Mutant 27% | Derelict-Mutant Dominant Class ---------------- Mutant | -10/Materials Mutant | -10/Subcaves Mutant | -7/Scraptown Resources | -11 -10 -10 -7 ----------- Run | Yrd Mat Sub Scr Matter Collected 648 | 302 75 108 163 Remotely . | . . . . Salvage Created 189 | 79 75 35 . Parts 19 | 7 8 4 . Haulers Intercepted . | . . . . Recyclers Shooed . | . . . . Parts Field Recycled . | . . . . Retrieved Matter . | . . . . Parts Self-Destructed 7 | . . 7 . Prevented . | . . . . Kills | -11 -10 -10 -7 ------- Run | Yrd Mat Sub Scr Combat Hostiles Destroyed 2 | . . 2 . Guns 2 | . . 2 . Classes Destroyed 4 | 2 1 1 . Builder 4 | . 4 . . Tunneler 2 | 2 . . . Recycler 1 | 1 . . . Swarmer 2 | . . 2 . Best Kill Streak 3 | 3 2 2 . Combat Bots Only 2 | . . 2 . Max Kills in Single Turn 1 | 1 1 1 . Gunslinging . | . . . . Exploded . | . . . . Melee . | . . . . Uniques/NPCs Destroyed . | . . . . Combat | -11 -10 -10 -7 -------- Run | Yrd Mat Sub Scr Hostile Shots Fired 138 | . 2 88 48 Missed 47 | . 1 36 10 Hits 91 | . 1 52 38 Melee 2 | . . . 2 Projectile 89 | . 1 52 36 Critical Strikes 2 | . . . 2 Damage Taken 1226 | . 31 497 698 Core 264 | . . 124 140 Absorbed by Shields . | . . . . Core Remaining (%) 100 | 100 . . . Volleys Fired 42 | 8 17 16 1 Largest 2 | 2 2 2 1 Hottest 53 | 40 40 53 30 Shots Fired 83 | 16 34 32 1 Gun 80 | 16 34 29 1 Cannon 3 | . . 3 . Launcher . | . . . . Special . | . . . . Kinetic 83 | 16 34 32 1 Thermal . | . . . . Explosive . | . . . . Electromagnetic . | . . . . Robot Hit Streak 8 | 4 4 8 2 Robot Miss Streak 5 | 1 4 5 . Penetration Max . | . . . . Secondary Targets 1 | . . 1 . Max Gunslinging Chain 1 | . . 1 . Shots Hit Robots 52 | 10 19 22 1 Core Hits 15 | 4 7 4 . Critical Kills 2 | . 2 . . Critical Parts Destroyed . | . . . . Critical Strikes 2 | . 2 . . Destroy 2 | . 2 . . Melee Attacks . | . . . . Impact . | . . . . Slashing . | . . . . Piercing . | . . . . Sneak Attacks . | . . . . Combat Hostiles . | . . . . Follow-up Attacks . | . . . . Damage Inflicted 615 | 119 207 254 35 Guns 537 | 119 201 190 27 Cannons 64 | . . 64 . Explosions . | . . . . Melee . | . . . . Ramming 14 | . 6 . 8 Kinetic 601 | 119 201 254 27 Thermal . | . . . . Explosive . | . . . . Electromagnetic . | . . . . Impact . | . . . . Slashing . | . . . . Piercing . | . . . . Highest Corruption . | . . . . Average Corruption . | . . . . Corruption Purged . | . . . . Corruption Blocked . | . . . . Overload Shots . | . . . . Overflow Damage 11 | . . 11 . Projectiles 11 | . . 11 . Explosions . | . . . . Melee . | . . . . Knockbacks 1 | . . 1 . Impact . | . . . . Kinetic 1 | . . 1 . Secondary . | . . . . Self-Inflicted Damage 7 | . 3 . 4 Shots . | . . . . Rammed 3 | . 1 . 2 Targets Rammed 3 | . 1 . 2 Kicked . | . . . . Crushed . | . . . . Highest Temperature 50 | . . 10 50 Average Temperature 29 | . . 10 31 Received Heat Transfer 647 | . 9 276 362 Siege Activations . | . . . . Martial Activations . | . . . . Shielding Activations . | . . . . Robots Disrupted . | . . . . Combat Hostiles . | . . . . Robots Corrupted . | . . . . Combat Hostiles . | . . . . Parts Fried . | . . . . Impact Corruptions . | . . . . Robots Melted . | . . . . Combat Hostiles . | . . . . Parts Melted . | . . . . Heat Transferred . | . . . . Parts Sabotaged . | . . . . Parts Stolen . | . . . . Parts Stripped . | . . . . Power Chain Reactions . | . . . . Alert | -11 -10 -10 -7 ------- Run | Yrd Mat Sub Scr Maximum Alert Level . | . . . . Low Security (%) 100 | 100 100 . . Level 1 . | . . . . Level 2 . | . . . . Level 3 . | . . . . Level 4 . | . . . . Level 5 . | . . . . High Security . | . . . . Max Security . | . . . . Peak Influence 10 | 10 10 . . Initial . | . . . . Average . | . . . . Influence Increases 135 | 15 20 100 . Destroy 0b10 Robot/C 40 | . . 40 . Destroy 0b10 Robot/NC 35 | 15 20 . . Lose Combat Pursuer 60 | . . 60 . Influence Decreases 135 | 15 20 100 . Time Decay 85 | 15 20 50 . Lost Part 50 | . . 50 . Squads Dispatched 1 | . 1 . . Investigation . | . . . . Extermination . | . . . . Reinforcement 1 | . 1 . . Assault . | . . . . Garrison . | . . . . Intercept . | . . . . Searches Triggered . | . . . . Construction Impeded . | . . . . Haulers Reinforced . | . . . . Active Scanning Responses . | . . . . Cargo Convoy Interrupts . | . . . . Stealth | -11 -10 -10 -7 --------- Run | Yrd Mat Sub Scr Distress Signals . | . . . . Communications Jammed . | . . . . Distress Signals . | . . . . Times Spotted 26 | . 3 5 18 Peak Tracking Total 13 | . 3 4 13 Tactical Retreats 2 | . . 2 . Traps | -11 -10 -10 -7 ------- Run | Yrd Mat Sub Scr Traps Triggered 2 | . . 2 . Indirectly . | . . . . Trap Hack Attempts . | . . . . Triggered . | . . . . Disarmed . | . . . . Reprogrammed . | . . . . Reused . | . . . . Traps Extracted . | . . . . Installed . | . . . . Triggered . | . . . . Machines | -11 -10 -10 -7 ---------- Run | Yrd Mat Sub Scr Machines Disabled 1 | . . 1 . Max in Single Turn 1 | . . 1 . Machines Repaired . | . . . . Machines Dismantled . | . . . . Machines Sabotaged . | . . . . Overloaded Fab Kills . | . . . . Hacking | -11 -10 -10 -7 --------- Run | Yrd Mat Sub Scr Machines Accessed 10 | . 1 . 9 Terminals 1 | . 1 . . Fabricators . | . . . . Repair Stations . | . . . . Recycling Units . | . . . . Scanalyzers . | . . . . Garrison Access . | . . . . Total Hacks 71 | . 3 . 68 Successful 68 | . . . 68 Failed 3 | . 3 . . Catastrophic . | . . . . Database Lockouts . | . . . . Manual 1 | . . . 1 Terminals 3 | . 3 . . Fabricators . | . . . . Repair Stations . | . . . . Recycling Units . | . . . . Scanalyzers . | . . . . Garrison Access . | . . . . Terminal Hacks 68 | . . . 68 Record 63 | . . . 63 Robot Analysis 5 | . . . 5 Fabricator Hacks . | . . . . Repair Station Hacks . | . . . . Recycling Unit Hacks . | . . . . Scanalyzer . | . . . . Garrison Access Hacks . | . . . . Unauthorized Hacks . | . . . . Terminals . | . . . . Fabricators . | . . . . Repair Stations . | . . . . Recycling Units . | . . . . Scanalyzers . | . . . . Garrison Access . | . . . . Data Cores Recovered . | . . . . Used . | . . . . Hacking Detections 1 | . 1 . . Full Trace Events . | . . . . Feedback Events . | . . . . Feedback Blocked . | . . . . Robot Schematics Acquired . | . . . . Robots Built . | . . . . Authchips . | . . . . Time . | . . . . Total Robot Build Rating . | . . . . Part Schematics Acquired . | . . . . Parts Built . | . . . . Authchips . | . . . . Time . | . . . . Total Part Build Rating . | . . . . Parts Repaired . | . . . . Time . | . . . . Parts Recycled . | . . . . Recycled Matter . | . . . . Retrieved Matter . | . . . . Retrieved Components . | . . . . Parts Scanalyzed . | . . . . Part Schematics Acquired . | . . . . Parts Damaged . | . . . . Bothacking | -11 -10 -10 -7 ------------ Run | Yrd Mat Sub Scr Used RIF Installer . | . . . . Robots Hacked . | . . . . Non-combat . | . . . . Combat . | . . . . Robot Hacks Applied . | . . . . Relay Couplers Released . | . . . . Fabnet Peak Effective % . | . . . . Robots Rewired . | . . . . Allies Hacked . | . . . . Hacks Repelled . | . . . . Allies | -11 -10 -10 -7 -------- Run | Yrd Mat Sub Scr Total Allies . | . . . . Largest Group . | . . . . Highest-Rated Group . | . . . . Highest-Rated Ally . | . . . . Total Orders . | . . . . Ally Attacks . | . . . . Total Damage . | . . . . Kills . | . . . . Allies Corrupted . | . . . . Allies Melted 3 | . . . 3 Intel | -11 -10 -10 -7 ------- Run | Yrd Mat Sub Scr Active Infowar (turns) 1614 | 31 601 204 778 Terrain 825 | 31 245 108 441 Structural 789 | . 356 96 337 Robot Analysis Total 5 | . . . 5 Derelict Logs Recovered 1 | . . 1 . Drone Launches . | . . . . Drone Recoveries . | . . . . Exploration | -11 -10 -10 -7 ------------- Run | Yrd Mat Sub Scr Turns Passed 3692 | 114 601 231 2746 Spaces Moved 2361 | 86 111 166 1998 Core 1 | 1 . . . Treads . | . . . . Legs . | . . . . Wheels 2360 | 85 111 166 1998 Hover . | . . . . Flight . | . . . . Fastest Speed 50 | 50 80 80 90 Average Speed 106 | 85 80 80 110 Slowest Speed 130 | 90 80 90 130 Overloaded Moves . | . . . . Propulsion Burnouts . | . . . . Robots Hopped . | . . . . Potential Cave-ins . | . . . . Cave-ins Triggered . | . . . . Exploration Rate (%) 32 | 5 12 18 94 Regions Visited 3 Branch Regions 2 Pre-discovered Areas . | . . . . Known Exits Taken . | . . . . Unknown Exits Taken 3 | 1 1 1 . Scrap Searched 7 | . . . 7 Spaces Dug . | . . . . Terrain Destroyed . | . . . . Melee . | . . . . Projectile . | . . . . AOE . | . . . . Terrain Rammed . | . . . . Walls Destroyed . | . . . . Machines Disabled . | . . . . Actions | -11 -10 -10 -7 --------- Run | Yrd Mat Sub Scr Total 3465 | 107 592 228 2538 Wait 975 | 2 461 37 475 Move 2359 | 85 111 165 1998 Hop . | . . . . Pick Up 34 | 4 2 1 27 Fast Attach 11 | 7 . . 4 Attach 7 | . . 4 3 Detach 3 | . . . 3 Swap 14 | 1 1 2 10 Drop 18 | . . 3 15 Fire 42 | 8 17 16 1 Melee . | . . . . Ram 2 | . . . 2 Kick . | . . . . Crush . | . . . . Escape Stasis . | . . . . Rewire . | . . . . Trap . | . . . . Miscellaneous . | . . . . Route ------- -11/Scrapyard -10/Materials -10/Subcaves (discovered 2 exits: [*Rec] / *Scr) -7/Scraptown (discovered 2 exits: [*Fac x2]) History --------- Turn | Location | Event 12 | -11/Scrapyard | Discovered new exit (range 14) 115 | -11/Scrapyard | Entered Materials 298 | -10/Materials | Discovered new exit (range 8) 306 | -10/Materials | Build established: Mutant 715 | -10/Materials | Derelicts attacked the area 716 | -10/Materials | Entered Subcaves 717 | -10/Subcaves | Approached by a straggling Scientist 832 | -10/Subcaves | Discovered new exit (range 16) 902 | -10/Subcaves | Lost 3 parts (1p1u1w) 939 | -10/Subcaves | Scientist uncovered a shortcut to Scraptown 947 | -10/Subcaves | Entered Scraptown 1118 | -7/Scraptown | Visited SPCMW 1162 | -7/Scraptown | Visited Assassins FH 1197 | -7/Scraptown | Visited UFD Registry 1205 | -7/Scraptown | Registered with UFD as "Boltglider" 1215 | -7/Scraptown | Visited Spacefarers 1264 | -7/Scraptown | Visited Shadow of the Wyrm 1567 | -7/Scraptown | Visited Junk Repository 1611 | -7/Scraptown | Visited Cyclists 1628 | -7/Scraptown | Entered Cyclist Reading Room 2206 | -7/Scraptown | Discovered new exit (range 7) 2303 | -7/Scraptown | Visited CPS Storage 2564 | -7/Scraptown | Visited Chapter 10 2615 | -7/Scraptown | Visited DA-N13 Charitable Foundation 2628 | -7/Scraptown | Found DCF Scrap (30 items) 2944 | -7/Scraptown | Build established: Derelict-Mutant 2955 | -7/Scraptown | Visited Scrap Suit Storage 2980 | -7/Scraptown | Found Scrap Suit 3017 | -7/Scraptown | Visited Observation Area 3073 | -7/Scraptown | Visited Cartography Club 3144 | -7/Scraptown | Discovered new exit (range 5) 3287 | -7/Scraptown | Visited Analyses Database 3318 | -7/Scraptown | Visited LU-1G1's Boring Crew 3376 | -7/Scraptown | Visited Curators Association 3455 | -7/Scraptown | Received an X-ray algorithm 3510 | -7/Scraptown | Met Optimus 3510 | -7/Scraptown | Accepted into 0bPrime 3608 | -7/Scraptown | Civil war broke out across Scraptown 3658 | -7/Scraptown | Core integrity fell below 50% 3690 | -7/Scraptown | Core integrity fell below 20% 3693 | -7/Scraptown | Destroyed by YS-14C(j) with Overtuned Pulse Rifle Last Messages --------------- Critical hit (Burn: +50). K7-OMC(j) heat short circuits Scrap Suit. Gauss Rifle destroyed. Imp. Deuterium Engine destroyed. Acquired Ovr. Barrage Gun. Acquired 10 matter. 1G-S69(j) destroyed. SJ-TQ1(x) suffers critical hit (Destroy). SJ-TQ1(x) destroyed. Acquired 10 matter. 6U-F8C(j) suffers critical hit (Burn). Bolt penetrates Wall. Ovr. Pulse Rifle destroyed. Slammed into YS-14C(j). Critical hit (Burn: +50). Discarded Terrain Scan Processor. 6U-F8C(j) destroyed. Slammed into 23-6MM(j). Destabilizing: Core damaged (-12). [Achievement: Back For More] Map ----- +----------------------------------------------------+ | | | | | | | | | | | | | | | | | ?????????????????????????????????????????????????? | | ?????????????????????????????????????????????????? | | ?????????????????????????????????????????????????? | | ?????????????????????????????????????????????????? | | ?????????????????????????????????????????????????? | | ?????????????????????????????????????????????????? | | ?????????????????????????????????????????????????? | | ?????????????????????????????????????????????????? | | ?????????????????????????????????????????????????? | | ?????????????????????????????????????????????????? | | ?????????????????????????????????????????????????? | | ???????????????????????????#####?????????????????? | | ???????????????????????????#"""#?????????????????? | | ###############???####?###?#" "#?????????????????? | | #"""##""|##"""#?### ### #?# < #?????????????????? | | #"" ##"" ##!!"###= ##!###h%!##????????????????? | | !%! !=![j=jjp #????????????????? | | !=[ !=!g=*@j= #????????????????? | | ##################*%=!###########????????????????? | | ?????????????????##!!##??????????????????????????? | | ??????????????????#=!#???????????????????????????? | | #######???????????#*%#???????????????????????????? | | # #???????????#=!#?##????????????????????????? | | """ # #???????????#![#?# ????????????????????????? | | "#" # #???????????#%&#?# ##??????????????????????? | | """ # #??##########!%#?? ###????????????????????? | | #??#""""""""#!=#??###X#????????????????????? | | ##### #??#"" " X "#!%#### ###????????????????????? | | # #??#"" "#!=# #????????????????????? | | # #??#""" ""#%=###### #######??????????????? | | # #??# # " #??????????????? | | #??# # # #??????????????? | | # #####??#### ##### ## ###########??????????????? | | # ########### ##### ## ###############??????????? | | " """"""""""" """" "" "## """"""""""#??????????? | | ! "## " "#??????????? | | ## """""" "#??????????? | | = ## "????" "#??????????? | | = "## "????" "#??????????? | | ![ "????" "#??????????? | | """"""""""""""""""" "## """""" "#??????????? | | """"""""""""""""""" ## "#??????????? | +----------------------------------------------------+ Best States ------------- Heat Dissipation 25 Energy Generation 16 Energy Capacity 290 Matter Stores 300 Matter Capacity 300 Sight Range 16 Terrain Scan Range 20 Terrain Scan Density 85 Evasion (%) 44 Item Schematics ----------------- None Robot Schematics ------------------ None Fabricated ------------ Nothing Repaired ---------- Nothing Alien Tech Used ----------------- None Achievements -------------- Back For More Challenges ------------ None Game ------ Seed GunPlatingDisintegrator Manual? 0 Play Time 01:02:53 Cumulative 59.7 hours Start 2025.05.07 @ 20:08:24 End 2025.05.07 @ 21:32:31 Sessions 1 Manual Loads 0 Difficulty Rogue Special Mode None Game No. 50 Rogue 50 Adventurer 0 Explorer 0 Win Type - Total 1 Types 1/0/0/0/0/0/0/0/0/0 Lore% 32 Gallery% 43 Achievement% 39 Wizard Run 0 Options --------- Layout 1 ASCII 0 Keyboard 1 Movement Numpad Keybinds 0 Fullscreen 1 Font 32/SmallcapsGlow Map View 50x35 Zoom Use 0% Tactical HUD 0 Map Filters NONE Filters NONE Steam 1 RUN: d8f1096b-afa2-4079-9d8d-684de7821a19